fUST/lending_fUST_20240226
["ID","MTS","AMOUNT","RATE_DAILY","PERIOD"]
[315230534,1708957846662,-777.59,0.00019452,2]
[315230535,1708957846671,-500.0,0.00019452,2]
[315230536,1708957846680,-1194.58,0.00019452,2]
[315230537,1708957846689,-500.0,0.00019452,2]
[315230538,1708957846698,-500.0,0.00019452,2]
[315230539,1708957846707,-1845.9,0.00019452,2]
[315230540,1708957846717,-5903.52,0.00019452,2]
[315230541,1708957846728,-1471.82,0.00019452,2]
[315230542,1708957846738,-789.99,0.00019452,2]
[315230543,1708957846753,-2716.72,0.00019452,2]
[315230544,1708957846902,-1075.25161658,0.00019452,2]
[315230545,1708958335243,-1718.77128395,0.00018458,2]
[315230546,1708958335264,-704.27292795,0.00018459,2]
[315230547,1708958335284,-280.13838305,0.0001846,2]
[315230548,1708958335304,-24900.0,0.00018475,2]
[315230549,1708958335326,-159.47434558,0.000188,2]
[315230550,1708958335346,-800.73386336,0.000189,2]
[315230551,1708958335367,-500.0,0.00019178,2]
[315230552,1708958335394,-500.0,0.00019178,2]
[315230553,1708958335414,-500.0,0.00019178,2]
[315230554,1708958335435,-500.0,0.00019178,2]
[315230555,1708958335456,-500.0,0.00019178,2]
[315230556,1708958335478,-500.0,0.00019178,2]
[315230557,1708958335498,-500.0,0.00019178,2]
[315230558,1708958335519,-1023.72,0.00019178,2]
[315230559,1708958335541,-764.02,0.00019178,2]
[315230560,1708958335562,-1402.74,0.00019178,2]
[315230561,1708958335584,-6761.77,0.00019178,2]
[315230562,1708958335607,-947.17,0.00019178,2]
[315230563,1708958335629,-2716.21,0.00019178,2]
[315230564,1708958335651,-500.0,0.00019178,2]
[315230565,1708958335673,-500.0,0.00019178,2]
[315230566,1708958335694,-568.32,0.00019178,2]
[315230567,1708958335717,-1176.35,0.00019178,2]
[315230568,1708958335738,-500.0,0.00019178,2]
[315230569,1708958335760,-500.0,0.00019178,2]
[315230570,1708958335781,-1358.42,0.00019178,2]
[315230571,1708958335802,-500.0,0.00019178,2]
[315230572,1708958335826,-12836.13,0.00019178,2]
[315230573,1708958335847,-752.38,0.00019178,2]
[315230574,1708958335869,-1511.08,0.00019178,2]
[315230575,1708958335899,-500.0,0.00019178,2]
[315230576,1708958335920,-500.0,0.00019178,2]
[315230577,1708958335943,-1095.03,0.00019178,2]
[315230578,1708958335965,-2490.32,0.00019178,2]
[315230579,1708958335988,-1349.17,0.00019178,2]
[315230580,1708958336009,-500.0,0.00019178,2]
[315230581,1708958336030,-5411.56,0.00019178,2]
[315230582,1708958336053,-1353.06,0.00019178,2]
[315230583,1708958336075,-533.91,0.00019178,2]
[315230584,1708958336097,-932.86,0.00019178,2]
[315230585,1708958336118,-12736.09,0.00019178,2]
[315230586,1708958336140,-1741.12,0.00019178,2]
[315230587,1708958336161,-500.0,0.00019178,2]
[315230588,1708958336183,-838.13,0.00019178,2]
[315230589,1708958336204,-500.0,0.00019178,2]
[315230590,1708958336228,-500.0,0.00019178,2]
[315230591,1708958336250,-1414.78,0.00019178,2]
[315230592,1708958336271,-836.62,0.00019178,2]
[315230593,1708958336292,-500.0,0.00019178,2]
[315230594,1708958336314,-530.21,0.00019178,2]
[315230595,1708958336334,-166.666666,0.00019178,2]
[315230596,1708958336354,-1211.6365575,0.00019355,2]
[315230597,1708958336374,-153.0,0.0001937,2]
[315230598,1708958336395,-2205.82431852,0.00019451,2]
[315230599,1708958336415,-1010.52,0.00019452,2]
[315230600,1708958336434,-966.5,0.00019452,2]
[315230601,1708958336455,-514.99472332,0.00019452,2]
[315230602,1708958336478,-500.0,0.00019452,2]
[315230603,1708958336498,-500.0,0.00019452,2]
[315230604,1708958336518,-500.0,0.00019452,2]
[315230605,1708958336539,-500.0,0.00019452,2]
[315230606,1708958336560,-1023.72,0.00019452,2]
[315230607,1708958336580,-764.02,0.00019452,2]
[315230608,1708958336601,-1402.74,0.00019452,2]
[315230609,1708958336623,-6761.77,0.00019452,2]
[315230610,1708958336644,-947.17,0.00019452,2]
[315230611,1708958336664,-2716.21,0.00019452,2]
[315230612,1708958336685,-607.73433503,0.00019452,2]
[315230613,1708958336705,-473.46181941,0.00019452,2]
[315230614,1708958336727,-568.32,0.00019452,2]
[315230615,1708958336749,-1176.35,0.00019452,2]
[315230616,1708958336771,-500.0,0.00019452,2]
[315230617,1708958336792,-609.4828341,0.00019452,2]
[315230618,1708958336813,-1358.42,0.00019452,2]
[315230619,1708958336834,-500.0,0.00019452,2]
[315230620,1708958336857,-12836.13,0.00019452,2]
[315230621,1708958336879,-752.38,0.00019452,2]
[315230622,1708958336901,-1511.08,0.00019452,2]
[315230623,1708958336922,-500.0,0.00019452,2]
[315230624,1708958336944,-500.0,0.00019452,2]
[315230625,1708958336968,-1095.03,0.00019452,2]
[315230626,1708958336989,-2490.32,0.00019452,2]
[315230627,1708958337011,-1349.17,0.00019452,2]
[315230628,1708958337033,-5411.56,0.00019452,2]
[315230629,1708958337055,-1353.06,0.00019452,2]
[315230630,1708958337076,-533.91,0.00019452,2]
[315230631,1708958337098,-932.86,0.00019452,2]
[315230632,1708958337119,-9315.39794223,0.00019452,2]
[315230853,1708959045402,-280.13838305,0.00017858,2]
[315230855,1708959045411,-1718.77128395,0.00017859,2]
[315230857,1708959045421,-155.95947889,0.00017861,2]
[315230859,1708959045430,-24900.0,0.00018291,2]
[315230861,1708959045439,-533.82257558,0.000189,2]
[315230863,1708959045449,-500.0,0.00019178,2]
[315230865,1708959045458,-500.0,0.00019178,2]
[315230866,1708959045468,-500.0,0.00019178,2]
[315230867,1708959045555,-500.0,0.00019178,2]
[315230868,1708959045590,-500.0,0.00019178,2]
[315230869,1708959045600,-757.65,0.00019178,2]
[315230870,1708959045609,-500.0,0.00019178,2]
[315230871,1708959045618,-938.41,0.00019178,2]
[315230872,1708959045627,-500.0,0.00019178,2]
[315230873,1708959045637,-461.73234439,0.00019178,2]
[315230874,1708959045645,-700.36,0.00019178,2]
[315230875,1708959045655,-945.54,0.00019178,2]
[315230876,1708959045664,-500.0,0.00019178,2]
[315230877,1708959045674,-520.96,0.00019178,2]
[315230878,1708959045684,-500.0,0.00019178,2]
[315230879,1708959045693,-500.0,0.00019178,2]
[315230880,1708959045703,-508.12,0.00019178,2]
[315230881,1708959045713,-1209.2022551,0.00019178,2]
[315230882,1708959045729,-4989.0877449,0.00019178,2]
[315230883,1708959045739,-1385.16,0.00019178,2]
[315230884,1708959045748,-868.24,0.00019178,2]
[315230885,1708959045758,-501.0655745,0.00019178,2]
[315230886,1708959045769,-2489.86,0.00019178,2]
[315230887,1708959045780,-1285.84,0.00019178,2]
[315230888,1708959045789,-1078.32,0.00019178,2]
[315230889,1708959045798,-500.0,0.00019178,2]
[315230890,1708959045806,-1245.22,0.00019178,2]
[315230891,1708959045815,-6776.61176341,0.00019178,2]
[315230892,1708959045826,-4989.83823659,0.00019178,2]
[315230893,1708959045835,-1236.74,0.00019178,2]
[315230894,1708959045845,-1003.78,0.00019178,2]
[315230895,1708959045854,-500.0,0.00019178,2]
[315230898,1708959045863,-500.0,0.00019178,2]
[315230900,1708959045872,-500.0,0.00019178,2]
[315230901,1708959045881,-500.0,0.00019178,2]
[315230903,1708959045890,-4960.59,0.00019178,2]
[315230904,1708959045899,-500.0,0.00019178,2]
[315230905,1708959045908,-910.07130135,0.00019178,2]
[315230909,1708959045935,-504.77869865,0.00019178,2]
[315230911,1708959045944,-219.23067463,0.00019178,2]
[315230916,1708959045983,-2063.56932537,0.00019178,2]
[315230919,1708959045992,-1240.3,0.00019178,2]
[315230922,1708959046001,-1875.92,0.00019178,2]
[315230925,1708959046011,-803.21,0.00019178,2]
[315230928,1708959046020,-807.02,0.00019178,2]
[315230930,1708959046030,-11817.28,0.00019178,2]
[315230932,1708959046039,-1668.58,0.00019178,2]
[315230934,1708959046047,-500.0,0.00019178,2]
[315230936,1708959046058,-1055.72,0.00019178,2]
[315230938,1708959046067,-500.0,0.00019178,2]
[315230940,1708959046077,-1355.83,0.00019178,2]
[315230942,1708959046086,-801.76,0.00019178,2]
[315230944,1708959046095,-500.0,0.00019178,2]
[315230946,1708959046105,-165.821467,0.00019178,2]
[315230948,1708959046115,-166.666666,0.00019178,2]
[315230950,1708959046125,-1211.51545439,0.00019355,2]
[315230952,1708959046134,-314.66544814,0.00019452,2]
[315230953,1708959046145,-500.0,0.00019452,2]
[315230955,1708959046155,-500.0,0.00019452,2]
[315230956,1708959046164,-757.65,0.00019452,2]
[315230957,1708959046174,-151.71358935,0.00019452,2]
[315230958,1708959046183,-938.41,0.00019452,2]
[315230959,1708959046192,-700.36,0.00019452,2]
[315230960,1708959046203,-945.54,0.00019452,2]
[315230961,1708959046212,-500.0,0.00019452,2]
[315230962,1708959046223,-520.96,0.00019452,2]
[315230963,1708959046234,-500.0,0.00019452,2]
[315230964,1708959046244,-500.0,0.00019452,2]
[315230966,1708959046253,-508.12,0.00019452,2]
[315230967,1708959046263,-6198.29,0.00019452,2]
[315230968,1708959046273,-1385.16,0.00019452,2]
[315230969,1708959046282,-868.24,0.00019452,2]
[315230971,1708959046291,-2489.86,0.00019452,2]
[315230973,1708959046300,-1285.84,0.00019452,2]
[315230975,1708959046310,-1078.32,0.00019452,2]
[315230977,1708959046318,-500.0,0.00019452,2]
[315230978,1708959046328,-1245.22,0.00019452,2]
[315230980,1708959046337,-11766.45,0.00019452,2]
[315230982,1708959046347,-1236.74,0.00019452,2]
[315230984,1708959046356,-1003.78,0.00019452,2]
[315230986,1708959046364,-500.0,0.00019452,2]
[315230988,1708959046373,-500.0,0.00019452,2]
[315230990,1708959046382,-500.0,0.00019452,2]
[315230992,1708959046391,-4960.59,0.00019452,2]
[315230994,1708959046400,-1414.85,0.00019452,2]
[315230996,1708959046410,-2282.8,0.00019452,2]
[315230998,1708959046419,-1240.3,0.00019452,2]
[315231000,1708959046428,-1875.92,0.00019452,2]
[315231002,1708959046437,-803.21,0.00019452,2]
[315231004,1708959046446,-807.02,0.00019452,2]
[315231006,1708959046455,-11817.28,0.00019452,2]
[315231008,1708959046464,-1668.58,0.00019452,2]
[315231010,1708959046474,-500.0,0.00019452,2]
[315231012,1708959046482,-1055.72,0.00019452,2]
[315231013,1708959046492,-330.27023482,0.00019452,2]
[315231016,1708959046502,-1355.83,0.00019452,2]
[315231017,1708959046514,-801.76,0.00019452,2]
[315231019,1708959046524,-500.0,0.00019452,2]
[315231021,1708959046533,-153.0,0.000195,2]
[315231023,1708959046542,-166.666666,0.00019627,2]
[315231025,1708959046551,-153.0,0.000197,2]
[315231027,1708959046560,-153.0,0.000197,2]
[315231029,1708959046570,-752.38,0.00019726,2]
[315231031,1708959046579,-500.0,0.00019726,2]
[315231033,1708959046588,-500.0,0.00019726,2]
[315231035,1708959046598,-500.0,0.00019726,2]
[315231037,1708959046607,-757.65,0.00019726,2]
[315231039,1708959046616,-938.41,0.00019726,2]
[315231041,1708959046625,-700.36,0.00019726,2]
[315231043,1708959046634,-945.54,0.00019726,2]
[315231045,1708959046643,-500.0,0.00019726,2]
[315231047,1708959046652,-520.96,0.00019726,2]
[315231049,1708959046661,-500.0,0.00019726,2]
[315231051,1708959046670,-500.0,0.00019726,2]
[315231053,1708959046679,-508.12,0.00019726,2]
[315231055,1708959046689,-6198.29,0.00019726,2]
[315231057,1708959046698,-1385.16,0.00019726,2]
[315231059,1708959046707,-868.24,0.00019726,2]
[315231061,1708959046716,-2489.86,0.00019726,2]
[315231063,1708959046725,-1285.84,0.00019726,2]
[315231065,1708959046734,-1078.32,0.00019726,2]
[315231066,1708959046743,-500.0,0.00019726,2]
[315231068,1708959046752,-1245.22,0.00019726,2]
[315231070,1708959046761,-11766.45,0.00019726,2]
[315231072,1708959046773,-1236.74,0.00019726,2]
[315231074,1708959046781,-1003.78,0.00019726,2]
[315231075,1708959046790,-500.0,0.00019726,2]
[315231077,1708959046798,-500.0,0.00019726,2]
[315231079,1708959046807,-500.0,0.00019726,2]
[315231081,1708959046817,-4960.59,0.00019726,2]
[315231083,1708959046826,-1096.18718235,0.00019726,2]
[315231094,1708959046916,-318.66281765,0.00019726,2]
[315231096,1708959046925,-775.93718235,0.00019726,2]
[315231098,1708959046937,-1506.86281765,0.00019726,2]
[315231100,1708959046946,-1240.3,0.00019726,2]
[315231102,1708959046955,-1297.10022079,0.00019726,2]
[315231104,1708959046966,-578.81977921,0.00019726,2]
[315231106,1708959046975,-515.83732926,0.00019726,2]
[315231108,1708959046986,-287.37267074,0.00019726,2]
[315231110,1708959046995,-807.02,0.00019726,2]
[315231112,1708959047005,-11817.28,0.00019726,2]
[315231114,1708959047014,-1668.58,0.00019726,2]
[315231116,1708959047023,-190.30062599,0.00019726,2]
[315231118,1708959047032,-1055.72,0.00019726,2]
[315231119,1708959047041,-1355.83,0.00019726,2]
[315231121,1708959047051,-801.76,0.00019726,2]
[315231123,1708959047060,-500.0,0.00019726,2]
[315231125,1708959047069,-153.0,0.000198,2]
[315231127,1708959047080,-8230.24916882,0.0001989,2]
[315231129,1708959047091,-3166.68300115,0.000199,2]
[315231131,1708959047102,-6639.46711033,0.00019978,2]
[315231133,1708959047111,-196.70916301,0.00019998,2]
[315231135,1708959047122,-155.2870316,0.00019998,2]
[315231137,1708959047131,-706.35043695,0.00019998,2]
[315231139,1708959047140,-227.42550652,0.00019998,2]
[315231141,1708959047149,-677.39959869,0.00019999,2]
[315231143,1708959047160,-243.58118859,0.00019999,2]
[315231145,1708959047169,-210.06445995,0.00019999,2]
[315231215,1708959047898,-33.51672864,0.00019999,2]
[315231217,1708959047907,-200.49719518,0.00019999,2]
[315231219,1708959047916,-243.58118859,0.00019999,2]
[315231221,1708959047925,-243.58118859,0.00019999,2]
[315231223,1708959047934,-243.58118859,0.00019999,2]
[315231224,1708959047943,-243.58118859,0.00019999,2]
[315231226,1708959047952,-243.58118859,0.00019999,2]
[315231228,1708959047961,-169.733297,0.0002,2]
[315231230,1708959047970,-2724.42115233,0.0002,2]
[315231232,1708959047979,-606.47526851,0.0002,2]
[315231464,1708959136503,-281.44189552,0.00019175,2]
[315231465,1708959136525,-280.13838305,0.00019176,2]
[315231466,1708959136547,-500.0,0.00019178,2]
[315231467,1708959136571,-500.0,0.00019178,2]
[315231468,1708959136595,-1125.11,0.00019178,2]
[315231469,1708959136617,-759.71,0.00019178,2]
[315231470,1708959136639,-1506.59972143,0.00019178,2]
[315231506,1708959691346,154.87010445,0.0001593,2]
[315231512,1708959971726,-273.88290382,0.00017676,2]
[315231513,1708959971746,-280.13838305,0.00017677,2]
[315231514,1708959971766,-4699.22949954,0.00017677,2]
[315231515,1708959971787,-300.0,0.00017677,2]
[315231516,1708959971807,-17076.74921359,0.00017678,2]
[315231517,1708960052151,-151.4697106,0.0001759,2]
[315231518,1708960052174,-348.5302894,0.00017678,2]
[315231646,1708960235073,-151.91257204,0.0001759,2]
[315231648,1708960235083,-280.13838305,0.00017677,2]
[315231650,1708960235092,-280.13838305,0.00017677,2]
[315231652,1708960235101,-280.13838305,0.00017677,2]
[315231654,1708960235111,-95.80150171,0.00017678,2]
[315231656,1708960235120,-186.8778944,0.00017892,2]
[315231658,1708960235129,-3050.5311316,0.00017895,2]
[315231660,1708960235139,-347.098415,0.00018051,2]
[315231662,1708960235149,-250.0,0.00018065,2]
[315231664,1708960235159,-844.62216416,0.000189,2]
[315231667,1708960235169,-1211.75768482,0.00019177,2]
[315231670,1708960235179,-662.94,0.00019178,2]
[315231673,1708960235189,-827.35,0.00019178,2]
[315231676,1708960235198,-500.0,0.00019178,2]
[315231678,1708960235209,-166.059238,0.00019178,2]
[315231680,1708960235218,-166.666666,0.00019178,2]
[315231683,1708960235228,-620.09824259,0.00019237,2]
[315231685,1708960235238,-10474.15,0.00019409,2]
[315231687,1708960235247,-358.25874374,0.00019409,2]
[315231689,1708960235257,-10728.26,0.00019409,2]
[315231691,1708960235267,-701.54,0.00019409,2]
[315231693,1708960235276,-1082.15,0.00019429,2]
[315231695,1708960235285,-500.0,0.00019429,2]
[315231697,1708960235295,-1238.0,0.00019429,2]
[315231698,1708960235304,-702.81,0.00019429,2]
[315231700,1708960235313,-500.0,0.0001943,2]
[315231702,1708960235323,-767.52,0.0001943,2]
[315231703,1708960235333,-579.17,0.0001943,2]
[315231704,1708960235342,-1136.68,0.0001943,2]
[315231705,1708960235352,-984.6,0.0001943,2]
[315231706,1708960235361,-607.73433503,0.0001943,2]
[315231707,1708960235371,-878.31,0.0001943,2]
[315231708,1708960235381,-500.0,0.0001943,2]
[315231709,1708960235391,-4487.12,0.0001943,2]
[315231710,1708960235400,-1085.26,0.0001943,2]
[315231711,1708960235409,-1997.45,0.0001943,2]
[315231712,1708960235419,-1460.01,0.0001943,2]
[315231713,1708960235432,-10392.47612299,0.0001943,3]
[315231714,1708960235496,-570.71840827,0.0001943,3]
[315231715,1708960235516,-3306.31886821,0.0001943,3]
[315231732,1708960240645,-292.63660053,0.0001943,3]
[315231734,1708960240654,-792.94398171,0.0001943,3]
[315231736,1708960240665,-259.9792,0.0001943,3]
[315231738,1708960240677,-658.93879695,0.0001943,3]
[315231749,1708960240775,-2497.10915948,0.0001943,3]
[315231765,1708960240903,-5361.87444878,0.0001943,3]
[315231769,1708960240933,-7536.92446596,0.0001943,3]
[315231885,1708960242030,-362.53401739,0.0001943,3]
[315231887,1708960242042,-2165.69190042,0.0001943,3]
[315231888,1708960242053,-5299.66402931,0.0001943,3]
[315231889,1708960242062,-1186.36,0.0001943,2]
[315231890,1708960242071,-500.0,0.0001944,2]
[315231891,1708960242080,-500.0,0.0001944,2]
[315231892,1708960242089,-500.0,0.0001944,2]
[315231893,1708960242098,-500.0,0.0001944,2]
[315231894,1708960242107,-821.11,0.0001944,2]
[315231895,1708960242116,-226.12114201,0.0001944,2]
[315231896,1708960242127,-386.68885799,0.0001944,2]
[315231898,1708960242136,-457.25329278,0.0001944,2]
[315231899,1708960242146,-42.74670722,0.0001944,2]
[315231900,1708960242155,-500.0,0.0001944,2]
[315231901,1708960242164,-500.0,0.0001944,2]
[315231902,1708960242173,-500.0,0.0001944,2]
[315231903,1708960242181,-679.17,0.0001944,2]
[315231904,1708960242190,-500.0,0.0001944,2]
[315231905,1708960242199,-500.0,0.0001944,2]
[315231906,1708960242208,-500.0,0.0001944,2]
[315231907,1708960242217,-1258.66,0.0001944,2]
[315231908,1708960242226,-5360.73,0.0001944,2]
[315231910,1708960242236,-2291.8,0.0001944,2]
[315231912,1708960242246,-1089.57,0.0001944,2]
[315231914,1708960242256,-500.0,0.0001944,2]
[315231916,1708960242265,-3.71337692,0.0001944,2]
[315232036,1708960243669,-1384.88043355,0.0001944,2]
[315232037,1708960243683,-252.83618953,0.0001944,2]
[315232038,1708960243693,-395.25635335,0.0001944,2]
[315232039,1708960243705,-447.70608542,0.0001944,2]
[315232041,1708960243718,-258.44391458,0.0001944,2]
[315232043,1708960243728,-965.86,0.0001944,2]
[315232045,1708960243739,-500.0,0.0001944,2]
[315232047,1708960243753,-500.0,0.0001944,2]
[315232049,1708960243765,-662.94,0.00019452,2]
[315232051,1708960243776,-827.35,0.00019452,2]
[315232053,1708960243787,-500.0,0.00019452,2]
[315232055,1708960243799,-153.0,0.000195,2]
[315232057,1708960243810,-153.0,0.000195,2]
[315232059,1708960243821,-166.666666,0.00019627,2]
[315232061,1708960243833,-10474.15,0.00019683,2]
[315232063,1708960243846,-10728.26,0.00019683,2]
[315232065,1708960243857,-701.54,0.00019683,2]
[315232067,1708960243869,-1082.15,0.00019703,2]
[315232069,1708960243882,-500.0,0.00019703,2]
[315232071,1708960243895,-1238.0,0.00019703,2]
[315232073,1708960243907,-702.81,0.00019703,2]
[315232075,1708960243918,-500.0,0.00019704,2]
[315232077,1708960243929,-767.52,0.00019704,2]
[315232079,1708960243941,-1136.68,0.00019704,2]
[315232081,1708960243952,-984.6,0.00019704,2]
[315232083,1708960243970,-878.31,0.00019704,2]
[315232085,1708960243981,-500.0,0.00019704,2]
[315232087,1708960243997,-4487.12,0.00019704,2]
[315232089,1708960244009,-1085.26,0.00019704,2]
[315232091,1708960244020,-1997.45,0.00019704,2]
[315232093,1708960244032,-1460.01,0.00019704,2]
[315232095,1708960244043,-1186.36,0.00019704,2]
[315232097,1708960244053,-500.0,0.00019714,2]
[315232099,1708960244064,-500.0,0.00019714,2]
[315232101,1708960244075,-500.0,0.00019714,2]
[315232103,1708960244086,-821.11,0.00019714,2]
[315232105,1708960244097,-612.81,0.00019714,2]
[315232107,1708960244107,-500.0,0.00019714,2]
[315232109,1708960244119,-500.0,0.00019714,2]
[315232111,1708960244129,-500.0,0.00019714,2]
[315232113,1708960244139,-679.17,0.00019714,2]
[315232115,1708960244150,-500.0,0.00019714,2]
[315232117,1708960244161,-1258.66,0.00019714,2]
[315232119,1708960244172,-5360.73,0.00019714,2]
[315232121,1708960244182,-2291.8,0.00019714,2]
[315232123,1708960244193,-1089.57,0.00019714,2]
[315232126,1708960244219,-500.0,0.00019714,2]
[315232127,1708960244229,-1641.43,0.00019714,2]
[315232129,1708960244240,-706.15,0.00019714,2]
[315232132,1708960244253,-965.86,0.00019714,2]
[315232134,1708960244265,-500.0,0.00019714,2]
[315232136,1708960244276,-662.94,0.00019726,2]
[315232138,1708960244287,-827.35,0.00019726,2]
[315232140,1708960244297,-500.0,0.00019726,2]
[315232142,1708960244307,-2850.01470099,0.000199,2]
[315232143,1708960244317,-153.0,0.00019918,2]
[315232145,1708960244328,-10474.15,0.00019957,2]
[315232148,1708960244338,-10728.26,0.00019957,2]
[315232149,1708960244349,-701.54,0.00019957,2]
[315232152,1708960244362,-1082.15,0.00019977,2]
[315232154,1708960244372,-500.0,0.00019977,2]
[315232156,1708960244383,-1238.0,0.00019977,2]
[315232157,1708960244393,-702.81,0.00019977,2]
[315232159,1708960244403,-500.0,0.00019978,2]
[315232161,1708960244416,-767.52,0.00019978,2]
[315232163,1708960244428,-1136.68,0.00019978,2]
[315232165,1708960244438,-984.6,0.00019978,2]
[315232167,1708960244448,-878.31,0.00019978,2]
[315232169,1708960244458,-500.0,0.00019978,2]
[315232171,1708960244469,-4487.12,0.00019978,2]
[315232173,1708960244478,-1085.26,0.00019978,2]
[315232175,1708960244489,-1997.45,0.00019978,2]
[315232177,1708960244501,-1460.01,0.00019978,2]
[315232179,1708960244512,-1186.36,0.00019978,2]
[315232181,1708960244521,-500.0,0.00019988,2]
[315232183,1708960244531,-500.0,0.00019988,2]
[315232185,1708960244542,-500.0,0.00019988,2]
[315232187,1708960244553,-821.11,0.00019988,2]
[315232189,1708960244563,-612.81,0.00019988,2]
[315232191,1708960244573,-500.0,0.00019988,2]
[315232193,1708960244583,-500.0,0.00019988,2]
[315232195,1708960244593,-500.0,0.00019988,2]
[315232197,1708960244603,-679.17,0.00019988,2]
[315232199,1708960244613,-500.0,0.00019988,2]
[315232201,1708960244623,-1258.66,0.00019988,2]
[315232203,1708960244633,-5360.73,0.00019988,2]
[315232205,1708960244643,-2291.8,0.00019988,2]
[315232207,1708960244653,-1089.57,0.00019988,2]
[315232209,1708960244663,-500.0,0.00019988,2]
[315232211,1708960244672,-1641.43,0.00019988,2]
[315232213,1708960244682,-706.15,0.00019988,2]
[315232215,1708960244691,-965.86,0.00019988,2]
[315232217,1708960244701,-500.0,0.00019988,2]
[315232219,1708960244712,-652.900589,0.00019998,2]
[315232221,1708960244722,-704.04980982,0.00019998,2]
[315232223,1708960244733,-282.14452344,0.00019998,2]
[315232225,1708960244747,-739.15086633,0.00019998,2]
[315232227,1708960244757,-273.65515252,0.00019998,2]
[315232229,1708960244767,-1245.9983715,0.00019999,2]
[315232231,1708960244777,-200.49719518,0.00019999,2]
[315232233,1708960244787,-243.58118859,0.00019999,2]
[315232235,1708960244797,-500.0,0.00019999,2]
[315232237,1708960244807,-500.0,0.00019999,2]
[315232239,1708960244817,-243.58118859,0.00019999,2]
[315232241,1708960244828,-243.58118859,0.00019999,2]
[315232243,1708960244838,-243.58118859,0.00019999,2]
[315232245,1708960244847,-25464.46452691,0.0002,2]
[315232247,1708960244860,-676.29209109,0.0002,2]
[315232249,1708960244873,-268.24199987,0.0002,2]
[315232252,1708960244884,-1027.33327999,0.0002,2]
[315232254,1708960244896,-1267.0699997,0.0002,2]
[315232649,1708960250900,-0.26898822,0.00019409,2]
[315232652,1708960711339,-280.13838305,0.00018506,2]
[315232653,1708960711361,-9873.8307564,0.00018507,2]
[315232654,1708960711386,-2397.5439735,0.00018507,2]
[315232655,1708960711408,-988.26004203,0.000189,2]
[315232782,1708960831976,658.84002802,0.000189,2]
[315232879,1708960960938,10801.386817,0.00018417,2]
[315233019,1708961431903,-1428.73370646,0.00018288,2]
[315233022,1708961431914,-10471.57448887,0.00018288,2]
[315233024,1708961431925,-850.86,0.00018288,2]
[315233026,1708961431938,-6276.18588087,0.00018288,2]
[315233028,1708961431947,-280.13838305,0.00018416,2]
[315233030,1708961431956,-439.22668534,0.000189,2]
[315233032,1708961431966,-1211.75768482,0.00019177,2]
[315233034,1708961431975,-400.24472666,0.00019178,2]
[315233036,1708961431984,-165.774044,0.00019178,2]
[315233038,1708961431993,-166.666666,0.00019178,2]
[315233040,1708961432002,-14117.31,0.00019397,3]
[315233043,1708961432012,-20328.93,0.00019398,3]
[315233046,1708961432021,-8847.80529251,0.00019398,3]
[315233456,1708961437821,-352.25334741,0.000189,2]
[315233458,1708961437832,-163.06,0.00019398,3]
[315233460,1708961437842,-7.68665259,0.00019406,2]
[315233462,1708961437854,-492.31334741,0.00019406,2]
[315233463,1708961437864,-1674.24576692,0.00019407,2]
[315233533,1708961442297,-1361.300005,0.00019407,2]
[315233537,1708961442310,-6756.83422808,0.00019407,2]
[315233540,1708961442320,-1032.22,0.00019407,2]
[315233543,1708961442329,-500.0,0.00019407,2]